[Event "*** Titled Tuesday Blitz"]
[Site "Chess.com"]
[Date "2020.12.29"]
[Round "1"]
[White "Agoking701"]
[Black "QuintilianoR"]
[Result "0-1"]
[WhiteElo "2342"]
[BlackElo "2660"]
[TimeControl "180+1"]
[EndTime "10:07:24 PST"]
[Termination "QuintilianoR won on time"]

1. e4 {[%clk 0:03:00.9]} 1... c5 {[%clk 0:02:59.6]} 2. Nf3 {[%clk 0:02:59.5]}
2... d6 {[%clk 0:02:59.8]} 3. d4 {[%clk 0:02:59.9]} 3... cxd4 {[%clk 0:03:00.7]}
4. Nxd4 {[%clk 0:03:00.1]} 4... Nf6 {[%clk 0:03:01.2]} 5. Nc3 {[%clk 0:03:00.5]}
5... a6 {[%clk 0:03:01.8]} 6. h3 {[%clk 0:02:59.3]} 6... e6 {[%clk 0:03:01.1]}
7. g4 {[%clk 0:02:56.8]} 7... Nfd7 {[%clk 0:02:58.6]} 8. Bg2 {[%clk 0:02:53.1]}
8... Nc6 {[%clk 0:02:56.4]} 9. Be3 {[%clk 0:02:51.3]} 9... Be7 {[%clk
0:02:56.5]} 10. O-O {[%clk 0:02:41]} 10... O-O {[%clk 0:02:54.7]} 11. f4 {[%clk
0:02:41.3]} 11... Nxd4 {[%clk 0:02:47.2]} 12. Qxd4 {[%clk 0:02:37.9]} 12... Rb8
{[%clk 0:02:42.1]} 13. Rad1 {[%clk 0:02:33]} 13... b5 {[%clk 0:02:35.3]} 14. a3
{[%clk 0:02:29.8]} 14... Qc7 {[%clk 0:02:32.9]} 15. Qd2 {[%clk 0:02:17.1]} 15...
Nb6 {[%clk 0:02:28.8]} 16. Qf2 {[%clk 0:02:14.1]} 16... Nc4 {[%clk 0:02:27.8]}
17. Bc1 {[%clk 0:02:09.8]} 17... Bb7 {[%clk 0:02:16]} 18. Qg3 {[%clk 0:01:50.1]}
18... Rbc8 {[%clk 0:01:58.4]} 19. Rd3 {[%clk 0:01:41.5]} 19... a5 {[%clk
0:01:48.9]} 20. f5 {[%clk 0:01:26.3]} 20... b4 {[%clk 0:01:45.6]} 21. axb4
{[%clk 0:01:25.9]} 21... axb4 {[%clk 0:01:46.5]} 22. Ne2 {[%clk 0:01:24.4]}
22... Bf6 {[%clk 0:01:40.5]} 23. Nf4 {[%clk 0:01:20.9]} 23... Nxb2 {[%clk
0:01:34.1]} 24. Bxb2 {[%clk 0:01:11.7]} 24... Bxb2 {[%clk 0:01:35]} 25. Kh1
{[%clk 0:01:00]} 25... Be5 {[%clk 0:01:28.5]} 26. Qh4 {[%clk 0:00:54.1]} 26...
Qxc2 {[%clk 0:01:24.5]} 27. Rdf3 {[%clk 0:00:49.5]} 27... Bxe4 {[%clk
0:01:22.3]} 28. R3f2 {[%clk 0:00:49.8]} 28... Bxg2+ {[%clk 0:01:21.6]} 29. Nxg2
{[%clk 0:00:50.7]} 29... Qe4 {[%clk 0:01:19]} 30. fxe6 {[%clk 0:00:50.2]} 30...
f6 {[%clk 0:01:03.8]} 31. Re1 {[%clk 0:00:38.7]} 31... Qd5 {[%clk 0:01:02.8]}
32. g5 {[%clk 0:00:36.2]} 32... Rc4 {[%clk 0:00:52.7]} 33. Qh5 {[%clk 0:00:33]}
33... g6 {[%clk 0:00:38.5]} 34. Qh6 {[%clk 0:00:28.5]} 34... Qxe6 {[%clk
0:00:35.5]} 35. gxf6 {[%clk 0:00:26.7]} 35... Rxf6 {[%clk 0:00:35.4]} 36. Ref1
{[%clk 0:00:24.5]} 36... Rc3 {[%clk 0:00:27.4]} 37. Kg1 {[%clk 0:00:04.8]} 37...
Bd4 {[%clk 0:00:20.9]} 38. Qh4 {[%clk 0:00:01.9]} 38... Bxf2+ {[%clk 0:00:17]}
39. Rxf2 {[%clk 0:00:02.8]} 39... Rc1+ {[%clk 0:00:17.1]} 40. Kh2 {[%clk
0:00:02]} 40... Qe5+ {[%clk 0:00:17.6]} 0-1

[Event "*** Titled Tuesday Blitz"]
[Site "Chess.com"]
[Date "2020.12.29"]
[Round "1"]
[White "MelihKaanCan"]
[Black "Iball95"]
[Result "0-1"]
[WhiteElo "2319"]
[BlackElo "2621"]
[TimeControl "180+1"]
[EndTime "10:07:24 PST"]
[Termination "Iball95 won on time"]

1. e4 {[%clk 0:02:57.1]} 1... e5 {[%clk 0:03:00.3]} 2. Nf3 {[%clk 0:02:56.8]}
2... Nc6 {[%clk 0:03:00.7]} 3. Bb5 {[%clk 0:02:56.6]} 3... Nf6 {[%clk
0:03:00.4]} 4. O-O {[%clk 0:02:56]} 4... Nxe4 {[%clk 0:02:59.6]} 5. Re1 {[%clk
0:02:55.1]} 5... Nd6 {[%clk 0:02:59.5]} 6. Nxe5 {[%clk 0:02:54.6]} 6... Be7
{[%clk 0:03:00]} 7. Bf1 {[%clk 0:02:51.2]} 7... Nxe5 {[%clk 0:02:57.9]} 8. Rxe5
{[%clk 0:02:52.1]} 8... O-O {[%clk 0:02:58.2]} 9. d4 {[%clk 0:02:52.8]} 9... Bf6
{[%clk 0:02:58.6]} 10. Re1 {[%clk 0:02:53.5]} 10... Re8 {[%clk 0:02:59.4]} 11.
d5 {[%clk 0:02:50.8]} 11... c6 {[%clk 0:02:42.5]} 12. Bf4 {[%clk 0:02:34.4]}
12... Rxe1 {[%clk 0:02:01]} 13. Qxe1 {[%clk 0:02:29]} 13... Bxb2 {[%clk
0:01:55.9]} 14. Bxd6 {[%clk 0:02:15.8]} 14... Bxa1 {[%clk 0:01:55.8]} 15. c3
{[%clk 0:02:11.1]} 15... b5 {[%clk 0:01:53.1]} 16. Bd3 {[%clk 0:02:02]} 16...
Bb7 {[%clk 0:01:43.6]} 17. Qe4 {[%clk 0:02:01.5]} 17... g6 {[%clk 0:01:36.8]}
18. Be7 {[%clk 0:01:52.3]} 18... Qa5 {[%clk 0:01:33.9]} 19. Bf6 {[%clk
0:01:52.5]} 19... cxd5 {[%clk 0:00:57.3]} 20. Qh4 {[%clk 0:01:38.8]} 20... Qb6
{[%clk 0:00:51.6]} 21. Bd4 {[%clk 0:01:35.4]} 21... Qe6 {[%clk 0:00:51.1]} 22.
Qh6 {[%clk 0:00:56.4]} 22... f6 {[%clk 0:00:49.3]} 23. Nd2 {[%clk 0:00:56.2]}
23... b4 {[%clk 0:00:43.8]} 24. Bxg6 {[%clk 0:00:51.4]} 24... hxg6 {[%clk
0:00:44.2]} 25. Qxg6+ {[%clk 0:00:52.3]} 25... Kf8 {[%clk 0:00:43]} 26. Bxf6
{[%clk 0:00:12]} 26... d6 {[%clk 0:00:09.6]} 27. Qg7+ {[%clk 0:00:02.8]} 27...
Ke8 {[%clk 0:00:09.7]} 28. Nf3 {[%clk 0:00:01.1]} 28... Qf7 {[%clk 0:00:06.9]}
29. Qh8+ {[%clk 0:00:01.4]} 29... Kd7 {[%clk 0:00:07.1]} 30. Qh3+ {[%clk
0:00:01.9]} 30... Kc7 {[%clk 0:00:07.3]} 31. Bd4 {[%clk 0:00:02]} 31... Bxc3
{[%clk 0:00:07.4]} 32. Qh4 {[%clk 0:00:01.9]} 32... Re8 {[%clk 0:00:06.2]} 33.
h3 {[%clk 0:00:01.1]} 33... Qe7 {[%clk 0:00:06]} 0-1

[Event "*** Titled Tuesday Blitz"]
[Site "Chess.com"]
[Date "2020.12.29"]
[Round "1"]
[White "Mikhail_Golubev"]
[Black "HouseOfDurin"]
[Result "1-0"]
[WhiteElo "2503"]
[BlackElo "2102"]
[TimeControl "180+1"]
[EndTime "10:07:24 PST"]
[Termination "Mikhail_Golubev won on time"]

1. e4 {[%clk 0:03:00.9]} 1... c5 {[%clk 0:03:00.1]} 2. Nf3 {[%clk 0:02:59.4]}
2... Nc6 {[%clk 0:03:00.6]} 3. Nc3 {[%clk 0:02:58.8]} 3... e5 {[%clk 0:03:00.3]}
4. Bc4 {[%clk 0:02:57.4]} 4... g6 {[%clk 0:03:00]} 5. d3 {[%clk 0:02:52.6]} 5...
h6 {[%clk 0:02:59.8]} 6. h4 {[%clk 0:02:46.2]} 6... d6 {[%clk 0:02:46.5]} 7. h5
{[%clk 0:02:38.5]} 7... g5 {[%clk 0:02:46]} 8. Nh2 {[%clk 0:02:35]} 8... Bg7
{[%clk 0:02:32.5]} 9. Ng4 {[%clk 0:02:30.8]} 9... Nf6 {[%clk 0:02:32.2]} 10. Ne3
{[%clk 0:02:29.8]} 10... Be6 {[%clk 0:02:23.2]} 11. Ncd5 {[%clk 0:02:25.8]}
11... a6 {[%clk 0:02:15.5]} 12. Bd2 {[%clk 0:02:15.1]} 12... b5 {[%clk
0:02:11.9]} 13. Nxf6+ {[%clk 0:02:14.5]} 13... Qxf6 {[%clk 0:01:57.8]} 14. Bd5
{[%clk 0:02:13.4]} 14... Kd7 {[%clk 0:01:48.1]} 15. c3 {[%clk 0:02:09.9]} 15...
Rab8 {[%clk 0:01:35.9]} 16. a4 {[%clk 0:02:08.5]} 16... b4 {[%clk 0:01:35.8]}
17. a5 {[%clk 0:02:02.2]} 17... bxc3 {[%clk 0:01:19.7]} 18. bxc3 {[%clk
0:01:54.6]} 18... Rb5 {[%clk 0:00:59.2]} 19. c4 {[%clk 0:01:45.8]} 19... Rb2
{[%clk 0:00:48.9]} 20. O-O {[%clk 0:01:21]} 20... Kc7 {[%clk 0:00:44.2]} 21. Bc3
{[%clk 0:01:16.6]} 21... Rbb8 {[%clk 0:00:29.5]} 22. Bxc6 {[%clk 0:01:14.6]}
22... Kxc6 {[%clk 0:00:30.4]} 23. Qa4+ {[%clk 0:01:14.1]} 23... Kc7 {[%clk
0:00:30.4]} 24. Nd5+ {[%clk 0:01:12.6]} 24... Bxd5 {[%clk 0:00:30.2]} 25. exd5
{[%clk 0:01:11.7]} 25... Rhc8 {[%clk 0:00:17.1]} 26. Rab1 {[%clk 0:01:00]} 26...
Kd8 {[%clk 0:00:15]} 27. Rb6 {[%clk 0:00:54.3]} 27... Qe7 {[%clk 0:00:13.7]} 28.
Rxa6 {[%clk 0:00:50.2]} 28... f5 {[%clk 0:00:09.7]} 29. Rb6 {[%clk 0:00:45.2]}
29... Rxb6 {[%clk 0:00:07.3]} 30. axb6 {[%clk 0:00:45.2]} 30... Qb7 {[%clk
0:00:08]} 31. Rb1 {[%clk 0:00:44.5]} 31... Rb8 {[%clk 0:00:07.9]} 32. Qc6 {[%clk
0:00:41.3]} 32... Bf8 {[%clk 0:00:05.8]} 33. Ba5 {[%clk 0:00:39.2]} 33... Be7
{[%clk 0:00:04]} 34. f3 {[%clk 0:00:27.5]} 34... f4 {[%clk 0:00:03.1]} 35. Kh2
{[%clk 0:00:24.6]} 35... Bf8 {[%clk 0:00:03.1]} 36. Kh3 {[%clk 0:00:24.7]} 36...
Ke7 {[%clk 0:00:03.2]} 37. Qc7+ {[%clk 0:00:20.1]} 37... Kf6 {[%clk 0:00:02.4]}
38. Kg4 {[%clk 0:00:17.9]} 38... Be7 {[%clk 0:00:01.7]} 39. Qc6 {[%clk
0:00:15.4]} 1-0

[Event "*** Titled Tuesday Blitz"]
[Site "Chess.com"]
[Date "2020.12.29"]
[Round "1"]
[White "WinOrTilt"]
[Black "Alexey_Ustinov"]
[Result "0-1"]
[WhiteElo "2060"]
[BlackElo "2497"]
[TimeControl "180+1"]
[EndTime "10:07:25 PST"]
[Termination "Alexey_Ustinov won by resignation"]

1. d4 {[%clk 0:02:59.1]} 1... g6 {[%clk 0:02:59.2]} 2. Nf3 {[%clk 0:02:59.1]}
2... Bg7 {[%clk 0:02:57.2]} 3. c4 {[%clk 0:02:58]} 3... c5 {[%clk 0:02:50.6]} 4.
e3 {[%clk 0:02:57.7]} 4... Nf6 {[%clk 0:02:46.4]} 5. Nc3 {[%clk 0:02:57.1]} 5...
O-O {[%clk 0:02:39]} 6. Be2 {[%clk 0:02:57.1]} 6... cxd4 {[%clk 0:02:38.3]} 7.
exd4 {[%clk 0:02:58]} 7... d5 {[%clk 0:02:37.9]} 8. O-O {[%clk 0:02:56.4]} 8...
Nc6 {[%clk 0:02:36.1]} 9. c5 {[%clk 0:02:54.4]} 9... b6 {[%clk 0:02:29.7]} 10.
cxb6 {[%clk 0:02:52.5]} 10... Qxb6 {[%clk 0:02:30.6]} 11. Na4 {[%clk 0:02:34.5]}
11... Qb8 {[%clk 0:02:20.1]} 12. Be3 {[%clk 0:02:29.8]} 12... Bg4 {[%clk
0:02:12.8]} 13. b3 {[%clk 0:02:14.3]} 13... Rc8 {[%clk 0:02:11.1]} 14. Rc1
{[%clk 0:02:03.5]} 14... e6 {[%clk 0:02:05.5]} 15. h3 {[%clk 0:01:57.2]} 15...
Bxf3 {[%clk 0:02:04.6]} 16. Bxf3 {[%clk 0:01:58.1]} 16... Nd7 {[%clk 0:02:05.1]}
17. Nc5 {[%clk 0:01:44.6]} 17... Nxc5 {[%clk 0:02:02.7]} 18. Rxc5 {[%clk
0:01:45.5]} 18... Qb6 {[%clk 0:01:44.8]} 19. Qc1 {[%clk 0:01:40.9]} 19... Bf8
{[%clk 0:01:36.7]} 20. Rc2 {[%clk 0:01:31.9]} 20... Bd6 {[%clk 0:01:35.6]} 21.
Rd1 {[%clk 0:01:31.4]} 21... Rc7 {[%clk 0:01:33.2]} 22. a3 {[%clk 0:01:25.6]}
22... Rac8 {[%clk 0:01:31.4]} 23. b4 {[%clk 0:01:24.8]} 23... a5 {[%clk
0:01:23.1]} 24. bxa5 {[%clk 0:01:05.5]} 24... Nxa5 {[%clk 0:01:24]} 25. Rxc7
{[%clk 0:01:04.7]} 25... Rxc7 {[%clk 0:01:22.9]} 26. Qb1 {[%clk 0:00:56.6]}
26... Qxb1 {[%clk 0:01:11.4]} 27. Rxb1 {[%clk 0:00:57.5]} 27... Bxa3 {[%clk
0:01:11]} 28. Bh6 {[%clk 0:00:49.8]} 28... Rc8 {[%clk 0:01:05.9]} 29. Ra1 {[%clk
0:00:38.7]} 29... Bb4 {[%clk 0:01:05.7]} 30. Rb1 {[%clk 0:00:37]} 30... Bf8
{[%clk 0:01:04.3]} 31. Bf4 {[%clk 0:00:34.3]} 31... Nc4 {[%clk 0:01:03.7]} 32.
Rb7 {[%clk 0:00:31.9]} 32... Bg7 {[%clk 0:01:00]} 33. Be3 {[%clk 0:00:30.1]}
33... Nd6 {[%clk 0:00:50.9]} 34. Rb2 {[%clk 0:00:26.2]} 34... Nf5 {[%clk
0:00:48.5]} 35. Rd2 {[%clk 0:00:23.4]} 35... Rc4 {[%clk 0:00:46.2]} 36. Be2
{[%clk 0:00:19.2]} 36... Rb4 {[%clk 0:00:43.7]} 37. Rc2 {[%clk 0:00:13.7]} 37...
Bxd4 {[%clk 0:00:40.6]} 38. Bf4 {[%clk 0:00:11]} 38... Kg7 {[%clk 0:00:34.7]}
39. Bd2 {[%clk 0:00:10.3]} 39... Rb2 {[%clk 0:00:29.2]} 40. Rxb2 {[%clk
0:00:09.2]} 40... Bxb2 {[%clk 0:00:30.1]} 41. g4 {[%clk 0:00:09.4]} 41... Nd4
{[%clk 0:00:28.3]} 42. Bd3 {[%clk 0:00:09.1]} 42... Nf3+ {[%clk 0:00:27.7]} 0-1

[Event "*** Titled Tuesday Blitz"]
[Site "Chess.com"]
[Date "2020.12.29"]
[Round "1"]
[White "Pantata007"]
[Black "Aygehovit1992"]
[Result "0-1"]
[WhiteElo "2297"]
[BlackElo "2595"]
[TimeControl "180+1"]
[EndTime "10:07:27 PST"]
[Termination "Aygehovit1992 won on time"]

1. d4 {[%clk 0:02:59.4]} 1... d6 {[%clk 0:02:57.3]} 2. e4 {[%clk 0:02:57.4]}
2... Nf6 {[%clk 0:02:53.2]} 3. Nc3 {[%clk 0:02:57.8]} 3... g6 {[%clk 0:02:50.8]}
4. Be3 {[%clk 0:02:57.5]} 4... c6 {[%clk 0:02:50.7]} 5. h3 {[%clk 0:02:56]} 5...
b5 {[%clk 0:02:50.5]} 6. e5 {[%clk 0:02:55.5]} 6... b4 {[%clk 0:02:48.2]} 7.
exf6 {[%clk 0:02:54.2]} 7... bxc3 {[%clk 0:02:48.2]} 8. fxe7 {[%clk 0:02:53.8]}
8... Bxe7 {[%clk 0:02:47.5]} 9. bxc3 {[%clk 0:02:54.1]} 9... Qa5 {[%clk
0:02:47.7]} 10. Qd2 {[%clk 0:02:44.4]} 10... Nd7 {[%clk 0:02:47.8]} 11. Nf3
{[%clk 0:02:44.3]} 11... Nb6 {[%clk 0:02:46.5]} 12. Bd3 {[%clk 0:02:30.5]} 12...
Ba6 {[%clk 0:02:45.4]} 13. O-O {[%clk 0:02:27.4]} 13... O-O {[%clk 0:02:44.8]}
14. Rfe1 {[%clk 0:02:19.6]} 14... Rfe8 {[%clk 0:02:43.8]} 15. Bxa6 {[%clk
0:02:09.5]} 15... Qxa6 {[%clk 0:02:42.7]} 16. Qd3 {[%clk 0:02:10.4]} 16... Qa4
{[%clk 0:02:24.3]} 17. Nd2 {[%clk 0:01:51.7]} 17... d5 {[%clk 0:02:24]} 18. Bf4
{[%clk 0:01:35.9]} 18... Bf8 {[%clk 0:02:20.5]} 19. Kf1 {[%clk 0:01:31.7]} 19...
Rxe1+ {[%clk 0:02:16.9]} 20. Kxe1 {[%clk 0:01:29.9]} 20... Qa3 {[%clk
0:02:10.9]} 21. Nb3 {[%clk 0:01:06.2]} 21... Nc4 {[%clk 0:01:59.9]} 22. Bc1
{[%clk 0:01:06.2]} 22... Qe7+ {[%clk 0:01:55.7]} 23. Kf1 {[%clk 0:01:02.9]}
23... Re8 {[%clk 0:01:55.8]} 24. Bd2 {[%clk 0:00:54.1]} 24... Qa3 {[%clk
0:01:40.3]} 25. Bc1 {[%clk 0:00:50.4]} 25... Qd6 {[%clk 0:01:39.5]} 26. g3
{[%clk 0:00:45]} 26... a5 {[%clk 0:01:39.1]} 27. a4 {[%clk 0:00:40.9]} 27... Qd7
{[%clk 0:01:36.4]} 28. Kg2 {[%clk 0:00:38.6]} 28... h5 {[%clk 0:01:19.3]} 29.
Bf4 {[%clk 0:00:29.1]} 29... Re4 {[%clk 0:01:05.4]} 30. Nd2 {[%clk 0:00:20.3]}
30... Nxd2 {[%clk 0:01:05.6]} 31. Qxd2 {[%clk 0:00:19.8]} 31... c5 {[%clk
0:01:05.6]} 32. Re1 {[%clk 0:00:19.4]} 32... Qxa4 {[%clk 0:01:03.4]} 33. Rxe4
{[%clk 0:00:17.8]} 33... dxe4 {[%clk 0:01:04.3]} 34. d5 {[%clk 0:00:18]} 34...
Qd7 {[%clk 0:01:01]} 35. d6 {[%clk 0:00:17.4]} 35... a4 {[%clk 0:00:59.1]} 36.
Qd5 {[%clk 0:00:17.9]} 36... Kh7 {[%clk 0:00:50.7]} 37. Qxc5 {[%clk 0:00:12.5]}
37... Qb7 {[%clk 0:00:43.8]} 38. Qc7 {[%clk 0:00:10.9]} 38... Qd5 {[%clk
0:00:43.8]} 39. c4 {[%clk 0:00:09.5]} 39... Qd1 {[%clk 0:00:30]} 40. Qxf7+
{[%clk 0:00:09]} 40... Bg7 {[%clk 0:00:30.2]} 41. Be5 {[%clk 0:00:09.4]} 41...
Qf3+ {[%clk 0:00:29.3]} 42. Qxf3 {[%clk 0:00:05.4]} 42... exf3+ {[%clk
0:00:30.2]} 43. Kxf3 {[%clk 0:00:05.5]} 43... Bxe5 {[%clk 0:00:31.1]} 44. d7
{[%clk 0:00:01.2]} 44... Bc7 {[%clk 0:00:30.9]} 45. Ke4 {[%clk 0:00:01]} 45...
a3 {[%clk 0:00:31.3]} 46. Kd5 {[%clk 0:00:01.3]} 46... a2 {[%clk 0:00:31.7]} 47.
Kc6 {[%clk 0:00:02.1]} 47... Bd8 {[%clk 0:00:32]} 0-1

[Event "*** Titled Tuesday Blitz"]
[Site "Chess.com"]
[Date "2020.12.29"]
[Round "1"]
[White "PavlovDanila"]
[Black "Fortitudine"]
[Result "1-0"]
[WhiteElo "2697"]
[BlackElo "2363"]
[TimeControl "180+1"]
[EndTime "10:07:28 PST"]
[Termination "PavlovDanila won by resignation"]

1. e4 {[%clk 0:03:00.9]} 1... c5 {[%clk 0:02:59.2]} 2. Nf3 {[%clk 0:03:00.6]}
2... d6 {[%clk 0:02:59.2]} 3. d4 {[%clk 0:03:01]} 3... cxd4 {[%clk 0:03:00.1]}
4. Nxd4 {[%clk 0:03:01.7]} 4... Nf6 {[%clk 0:03:00.5]} 5. Nc3 {[%clk 0:03:02.1]}
5... Nc6 {[%clk 0:03:01]} 6. Be3 {[%clk 0:03:01.8]} 6... Ng4 {[%clk 0:03:00.2]}
7. Bg5 {[%clk 0:03:01.9]} 7... h6 {[%clk 0:02:59.6]} 8. Bh4 {[%clk 0:03:01.7]}
8... g5 {[%clk 0:02:59.9]} 9. Bg3 {[%clk 0:03:02]} 9... Bg7 {[%clk 0:03:00.1]}
10. Nb3 {[%clk 0:03:02.3]} 10... Be6 {[%clk 0:02:47.9]} 11. Qd2 {[%clk 0:03:02]}
11... Rc8 {[%clk 0:02:47.2]} 12. h4 {[%clk 0:03:01]} 12... gxh4 {[%clk
0:02:41.2]} 13. Rxh4 {[%clk 0:03:00.9]} 13... Bf6 {[%clk 0:02:32.7]} 14. Rh1
{[%clk 0:03:00.8]} 14... Bg7 {[%clk 0:02:12]} 15. Be2 {[%clk 0:02:40.7]} 15...
Nge5 {[%clk 0:02:10.1]} 16. O-O-O {[%clk 0:02:34.3]} 16... Nb4 {[%clk
0:02:05.4]} 17. Kb1 {[%clk 0:02:24.2]} 17... Nc4 {[%clk 0:01:38.8]} 18. Bxc4
{[%clk 0:02:23.4]} 18... Bxc4 {[%clk 0:01:39.7]} 19. a3 {[%clk 0:01:44.4]} 19...
Nc6 {[%clk 0:01:12.7]} 20. Bf4 {[%clk 0:01:26.6]} 20... h5 {[%clk 0:01:01.2]}
21. Nd5 {[%clk 0:01:16.5]} 21... Bxb3 {[%clk 0:00:43.3]} 22. cxb3 {[%clk
0:01:15.7]} 22... Qa5 {[%clk 0:00:37]} 23. b4 {[%clk 0:00:41.3]} 23... Qa4
{[%clk 0:00:37]} 24. Rhe1 {[%clk 0:00:25.5]} 24... Qb3 {[%clk 0:00:30.5]} 25.
Rc1 {[%clk 0:00:22.4]} 25... Kf8 {[%clk 0:00:10.4]} 26. Re3 {[%clk 0:00:22.3]}
26... Qa4 {[%clk 0:00:09.9]} 27. Nc3 {[%clk 0:00:15.5]} 27... Qb3 {[%clk
0:00:06.8]} 28. Nd5 {[%clk 0:00:09.9]} 28... Qa4 {[%clk 0:00:06.7]} 29. Rd3
{[%clk 0:00:10.6]} 29... e6 {[%clk 0:00:04.5]} 30. Nc3 {[%clk 0:00:10.3]} 30...
Qb3 {[%clk 0:00:04.1]} 31. Bxd6+ {[%clk 0:00:10.3]} 31... Kg8 {[%clk 0:00:03.9]}
32. Bf4 {[%clk 0:00:07.3]} 32... Kh7 {[%clk 0:00:03.1]} 33. Nb5 {[%clk
0:00:06.9]} 33... Qa4 {[%clk 0:00:02.6]} 34. Nd6 {[%clk 0:00:07.3]} 34... Rcd8
{[%clk 0:00:03.2]} 35. Nxf7 {[%clk 0:00:06.5]} 35... Rxd3 {[%clk 0:00:04.1]} 36.
Qxd3 {[%clk 0:00:07.2]} 36... Ne5 {[%clk 0:00:03.3]} 37. Bxe5 {[%clk 0:00:05.1]}
37... Bxe5 {[%clk 0:00:04.2]} 38. Nxe5 {[%clk 0:00:05.7]} 1-0

[Event "*** Titled Tuesday Blitz"]
[Site "Chess.com"]
[Date "2020.12.29"]
[Round "1"]
[White "MrTattaglia"]
[Black "TokChess"]
[Result "1-0"]
[WhiteElo "2967"]
[BlackElo "2470"]
[TimeControl "180+1"]
[EndTime "10:07:29 PST"]
[Termination "MrTattaglia won by checkmate"]

1. Nf3 {[%clk 0:03:00]} 1... Nf6 {[%clk 0:02:52.7]} 2. c4 {[%clk 0:02:59.8]}
2... g6 {[%clk 0:02:51]} 3. Nc3 {[%clk 0:02:59.7]} 3... d5 {[%clk 0:02:50.8]} 4.
cxd5 {[%clk 0:02:59.1]} 4... Nxd5 {[%clk 0:02:51.4]} 5. h4 {[%clk 0:02:58.9]}
5... h6 {[%clk 0:02:44.6]} 6. Qb3 {[%clk 0:02:56.4]} 6... Nb6 {[%clk 0:02:42.7]}
7. d4 {[%clk 0:02:55.6]} 7... Bg7 {[%clk 0:02:41.4]} 8. e4 {[%clk 0:02:55.5]}
8... Bg4 {[%clk 0:02:37.3]} 9. Be3 {[%clk 0:02:54.6]} 9... O-O {[%clk
0:02:28.7]} 10. Ne5 {[%clk 0:02:54]} 10... Be6 {[%clk 0:02:27.6]} 11. Qc2 {[%clk
0:02:52.8]} 11... N8d7 {[%clk 0:02:19.7]} 12. Nxd7 {[%clk 0:02:48.1]} 12... Bxd7
{[%clk 0:02:19.8]} 13. Rd1 {[%clk 0:02:46.2]} 13... c6 {[%clk 0:01:52.5]} 14.
Qd2 {[%clk 0:02:41.7]} 14... Kh7 {[%clk 0:01:52.1]} 15. Be2 {[%clk 0:02:41.3]}
15... Qc7 {[%clk 0:01:50.9]} 16. Bf4 {[%clk 0:02:36.8]} 16... Qd8 {[%clk
0:01:40.3]} 17. Qe3 {[%clk 0:02:32.2]} 17... Qe8 {[%clk 0:01:37.7]} 18. e5
{[%clk 0:02:14.7]} 18... Nd5 {[%clk 0:01:36.6]} 19. Nxd5 {[%clk 0:02:14.4]}
19... cxd5 {[%clk 0:01:37.2]} 20. h5 {[%clk 0:02:15]} 20... g5 {[%clk
0:01:36.9]} 21. Bxg5 {[%clk 0:02:14.3]} 21... hxg5 {[%clk 0:01:31.7]} 22. h6
{[%clk 0:02:14.1]} 22... Bf6 {[%clk 0:01:15.3]} 23. Bd3+ {[%clk 0:02:06.4]}
23... Kh8 {[%clk 0:01:14.9]} 24. O-O {[%clk 0:01:49.4]} 24... Qd8 {[%clk
0:01:09.8]} 25. f4 {[%clk 0:01:45.8]} 25... g4 {[%clk 0:01:03.5]} 26. f5 {[%clk
0:01:38.2]} 26... Qb6 {[%clk 0:01:01.1]} 27. Rde1 {[%clk 0:01:31.2]} 27... Bh4
{[%clk 0:00:58.8]} 28. g3 {[%clk 0:01:29.7]} 28... Bxg3 {[%clk 0:00:58.6]} 29.
Qxg3 {[%clk 0:01:28.4]} 29... Qxd4+ {[%clk 0:00:58.8]} 30. Kg2 {[%clk
0:01:25.1]} 30... Rg8 {[%clk 0:00:58.8]} 31. Rf4 {[%clk 0:01:19.7]} 31... Qxb2+
{[%clk 0:00:57.5]} 32. Re2 {[%clk 0:01:19.8]} 32... Qc3 {[%clk 0:00:56.7]} 33.
e6 {[%clk 0:01:17.1]} 33... fxe6 {[%clk 0:00:53.9]} 34. fxe6 {[%clk 0:01:18]}
34... Bc6 {[%clk 0:00:51.7]} 35. Rf7 {[%clk 0:01:18.1]} 35... d4+ {[%clk
0:00:49.6]} 36. Kh2 {[%clk 0:01:00]} 36... Rg5 {[%clk 0:00:49.1]} 37. Rh7+
{[%clk 0:00:33.3]} 37... Kg8 {[%clk 0:00:48.7]} 38. Qh4 {[%clk 0:00:20.6]} 38...
Qc1 {[%clk 0:00:35.7]} 39. Re1 {[%clk 0:00:14.5]} 39... Qf4+ {[%clk 0:00:31.4]}
40. Kg1 {[%clk 0:00:12]} 40... Rf8 {[%clk 0:00:18.7]} 41. Rg7+ {[%clk
0:00:12.1]} 41... Rxg7 {[%clk 0:00:17.4]} 42. hxg7 {[%clk 0:00:12.3]} 42... Kxg7
{[%clk 0:00:11.6]} 43. Qh7+ {[%clk 0:00:12.2]} 43... Kf6 {[%clk 0:00:11.7]} 44.
Qg6# {[%clk 0:00:12.6]} 1-0

[Event "*** Titled Tuesday Blitz"]
[Site "Chess.com"]
[Date "2020.12.29"]
[Round "1"]
[White "onnoelgersma"]
[Black "OK97"]
[Result "0-1"]
[WhiteElo "2420"]
[BlackElo "2807"]
[TimeControl "180+1"]
[EndTime "10:07:29 PST"]
[Termination "OK97 won by resignation"]

1. e4 {[%clk 0:02:57]} 1... e6 {[%clk 0:02:58.8]} 2. Nf3 {[%clk 0:02:35.2]} 2...
d5 {[%clk 0:02:57]} 3. Nc3 {[%clk 0:02:31.4]} 3... d4 {[%clk 0:02:54.6]} 4. Ne2
{[%clk 0:02:30.7]} 4... c5 {[%clk 0:02:54.9]} 5. Ng3 {[%clk 0:02:22.3]} 5... a6
{[%clk 0:02:51.1]} 6. a4 {[%clk 0:02:20.3]} 6... Nc6 {[%clk 0:02:51.2]} 7. Bc4
{[%clk 0:02:17]} 7... Bd6 {[%clk 0:02:48.7]} 8. d3 {[%clk 0:02:13.8]} 8... Nge7
{[%clk 0:02:41.7]} 9. Bd2 {[%clk 0:02:04.7]} 9... Ng6 {[%clk 0:02:34.4]} 10. Nh5
{[%clk 0:01:48.6]} 10... O-O {[%clk 0:02:27.2]} 11. O-O {[%clk 0:01:47.9]} 11...
Bd7 {[%clk 0:02:13]} 12. c3 {[%clk 0:01:32.4]} 12... Nge5 {[%clk 0:02:05.8]} 13.
cxd4 {[%clk 0:01:11.5]} 13... Nxc4 {[%clk 0:02:01.8]} 14. dxc4 {[%clk
0:01:10.6]} 14... cxd4 {[%clk 0:01:59.2]} 15. Nf4 {[%clk 0:01:10.2]} 15... Qc7
{[%clk 0:01:34.9]} 16. Nd3 {[%clk 0:01:09.5]} 16... f5 {[%clk 0:01:22.3]} 17.
exf5 {[%clk 0:00:41.8]} 17... e5 {[%clk 0:01:22.2]} 18. Re1 {[%clk 0:00:34.3]}
18... Bxf5 {[%clk 0:01:21]} 19. c5 {[%clk 0:00:33.1]} 19... Bxd3 {[%clk
0:00:53.9]} 20. cxd6 {[%clk 0:00:33.1]} 20... Qf7 {[%clk 0:00:53.8]} 21. Bg5
{[%clk 0:00:17.1]} 21... e4 {[%clk 0:00:50.6]} 22. Bh4 {[%clk 0:00:16.4]} 22...
Qg6 {[%clk 0:00:37.6]} 23. Ng5 {[%clk 0:00:13.7]} 23... h6 {[%clk 0:00:33.7]}
24. Qb3+ {[%clk 0:00:13.4]} 24... Kh8 {[%clk 0:00:32.6]} 25. Qe6 {[%clk
0:00:12.9]} 25... Rf6 {[%clk 0:00:28.3]} 26. Qh3 {[%clk 0:00:10.6]} 26... hxg5
{[%clk 0:00:23.9]} 27. Bxg5+ {[%clk 0:00:10.6]} 27... Kg8 {[%clk 0:00:24.5]} 28.
Bxf6 {[%clk 0:00:10.9]} 28... Qxf6 {[%clk 0:00:24.8]} 29. d7 {[%clk 0:00:11.1]}
29... Rd8 {[%clk 0:00:23.7]} 30. Rad1 {[%clk 0:00:11]} 30... Ne5 {[%clk
0:00:23.1]} 31. Rc1 {[%clk 0:00:08.5]} 31... Nxd7 {[%clk 0:00:15.8]} 32. Rc7
{[%clk 0:00:07.7]} 32... Ne5 {[%clk 0:00:15.9]} 33. Rec1 {[%clk 0:00:07.2]}
33... Rf8 {[%clk 0:00:15.8]} 34. Qg3 {[%clk 0:00:06.4]} 34... e3 {[%clk
0:00:15.4]} 35. f4 {[%clk 0:00:05.5]} 35... Ng6 {[%clk 0:00:13.2]} 36. Qg5
{[%clk 0:00:04.6]} 36... Nxf4 {[%clk 0:00:11.6]} 37. Qxf6 {[%clk 0:00:03.1]}
37... Rxf6 {[%clk 0:00:12.5]} 38. Rxb7 {[%clk 0:00:03.4]} 38... Ne2+ {[%clk
0:00:12.6]} 39. Kh1 {[%clk 0:00:03.4]} 39... Nxc1 {[%clk 0:00:13]} 0-1